fUSD/lending_fUSD_20260605
["ID","MTS","AMOUNT","RATE_DAILY","PERIOD"]
[424122292,1780601506000,-500.0,0.00038082,11]
[424122295,1780601506000,-588.76837615,0.00038082,11]
[424122294,1780601506000,-500.0,0.00038082,11]
[424122296,1780601506000,-649.58,0.00038082,11]
[424122301,1780601506000,-500.0,0.00038082,11]
[424122332,1780601506000,-810.46,0.00038082,11]
[424122315,1780601506000,-500.0,0.00038082,11]
[424122330,1780601506000,-500.0,0.00038082,11]
[424122368,1780601506000,-938.89,0.00038082,11]
[424122363,1780601506000,-550.11,0.00038082,11]
[424122367,1780601506000,-878.44,0.00038082,11]
[424122364,1780601506000,-500.0,0.00038082,11]
[424122366,1780601506000,-625.52,0.00038082,11]
[424122365,1780601506000,-761.79,0.00038082,11]
[424122370,1780601506000,-500.0,0.00038082,11]
[424122375,1780601506000,-500.0,0.00038082,11]
[424122372,1780601506000,-500.0,0.00038082,11]
[424122373,1780601506000,-500.0,0.00038082,11]
[424122374,1780601506000,-500.0,0.00038082,11]
[424122371,1780601506000,-500.0,0.00038082,11]
[424122358,1780601506000,-500.0,0.00038082,11]
[424122376,1780601506000,-500.0,0.00038082,11]
[424122378,1780601506000,-500.0,0.00038082,11]
[424122381,1780601506000,-292.80762739,0.00038082,11]
[424122377,1780601506000,-500.0,0.00038082,11]
[424122380,1780601506000,-637.68,0.00038082,11]
[424122383,1780601506000,-500.0,0.00038082,11]
[424122382,1780601506000,-563.67,0.00038082,11]
[424122385,1780601506000,-500.0,0.00038082,11]
[424122384,1780601506000,-500.0,0.00038082,11]
[424122386,1780601506000,-522.36,0.00038082,11]
[424122389,1780601506000,-809.94,0.00038082,11]
[424122388,1780601506000,-500.0,0.00038082,11]
[424122331,1780601506000,-500.0,0.00038082,11]
[424122379,1780601506000,-500.0,0.00038082,11]
[424122361,1780601506000,-3301.75,0.00038082,11]
[424122387,1780601506000,-500.0,0.00038082,11]
[424122362,1780601506000,-2661.47,0.00038082,11]
[424122360,1780601506000,-500.0,0.00038082,11]
[424122336,1780601506000,-542.6,0.00038082,11]
[424122345,1780601506000,-500.0,0.00038082,11]
[424122335,1780601506000,-500.0,0.00038082,11]
[424122337,1780601506000,-500.0,0.00038082,11]
[424122343,1780601506000,-500.0,0.00038082,11]
[424122341,1780601506000,-500.0,0.00038082,11]
[424122339,1780601506000,-500.0,0.00038082,11]
[424122338,1780601506000,-500.0,0.00038082,11]
[424122340,1780601506000,-500.0,0.00038082,11]
[424122342,1780601506000,-500.0,0.00038082,11]
[424122344,1780601506000,-500.0,0.00038082,11]
[424122346,1780601506000,-500.0,0.00038082,11]
[424122333,1780601506000,-500.0,0.00038082,11]
[424122357,1780601506000,-545.11,0.00038082,11]
[424122369,1780601506000,-737.5,0.00038082,11]
[424122359,1780601506000,-715.51,0.00038082,11]
[424122351,1780601506000,-500.0,0.00038082,11]
[424122356,1780601506000,-500.0,0.00038082,11]
[424122352,1780601506000,-667.4,0.00038082,11]
[424122353,1780601506000,-500.0,0.00038082,11]
[424122355,1780601506000,-313.48107577,0.00038082,11]
[424122349,1780601506000,-631.12,0.00038082,11]
[424122347,1780601506000,-500.0,0.00038082,11]
[424122354,1780601506000,-500.0,0.00038082,11]
[424122348,1780601506000,-500.0,0.00038082,11]
[424122350,1780601506000,-500.0,0.00038082,11]
[424122420,1780601507000,-500.0,0.00038082,11]
[424122429,1780601507000,-500.0,0.00038082,11]
[424122426,1780601507000,-500.0,0.00038082,11]
[424122424,1780601507000,-542.45,0.00038082,11]
[424122419,1780601507000,-741.75,0.00038082,11]
[424122425,1780601507000,-500.0,0.00038082,11]
[424122422,1780601507000,-500.0,0.00038082,11]
[424122423,1780601507000,-619.28,0.00038082,11]
[424122427,1780601507000,-500.0,0.00038082,11]
[424122441,1780601507000,-500.0,0.00038082,11]
[424122421,1780601507000,-808.02,0.00038082,11]
[424122431,1780601507000,-600.94,0.00038082,11]
[424122434,1780601507000,-500.0,0.00038082,11]
[424122440,1780601507000,-821.02,0.00038082,11]
[424122432,1780601507000,-500.0,0.00038082,11]
[424122433,1780601507000,-500.0,0.00038082,11]
[424122436,1780601507000,-500.0,0.00038082,11]
[424122444,1780601507000,-551.27,0.00038082,11]
[424122439,1780601507000,-500.0,0.00038082,11]
[424122438,1780601507000,-500.0,0.00038082,11]
[424122437,1780601507000,-500.0,0.00038082,11]
[424122435,1780601507000,-500.0,0.00038082,11]
[424122446,1780601507000,-500.0,0.00038082,11]
[424122442,1780601507000,-500.0,0.00038082,11]
[424122417,1780601507000,-500.0,0.00038082,11]
[424122430,1780601507000,-929.56,0.00038082,11]
[424122428,1780601507000,-2731.82,0.00038082,11]
[424122402,1780601507000,-500.0,0.00038082,11]
[424122415,1780601507000,-675.05,0.00038082,11]
[424122445,1780601507000,-500.0,0.00038082,11]
[424122393,1780601507000,-500.0,0.00038082,11]
[424122390,1780601507000,-500.0,0.00038082,11]
[424122392,1780601507000,-500.0,0.00038082,11]
[424122391,1780601507000,-500.0,0.00038082,11]
[424122394,1780601507000,-500.0,0.00038082,11]
[424122401,1780601507000,-500.0,0.00038082,11]
[424122405,1780601507000,-538.96,0.00038082,11]
[424122396,1780601507000,-500.0,0.00038082,11]
[424122404,1780601507000,-1470.71,0.00038082,11]
[424122398,1780601507000,-500.0,0.00038082,11]
[424122400,1780601507000,-500.0,0.00038082,11]
[424122418,1780601507000,-500.0,0.00038082,11]
[424122397,1780601507000,-500.0,0.00038082,11]
[424122399,1780601507000,-500.0,0.00038082,11]
[424122403,1780601507000,-500.0,0.00038082,11]
[424122407,1780601507000,-500.0,0.00038082,11]
[424122406,1780601507000,-500.0,0.00038082,11]
[424122408,1780601507000,-500.0,0.00038082,11]
[424122410,1780601507000,-568.89543597,0.00038082,11]
[424122413,1780601507000,-500.0,0.00038082,11]
[424122416,1780601507000,-4203.86,0.00038082,11]
[424122411,1780601507000,-500.0,0.00038082,11]
[424122412,1780601507000,-500.0,0.00038082,11]
[424122409,1780601507000,-500.0,0.00038082,11]
[424122414,1780601507000,-500.0,0.00038082,11]
[424122395,1780601507000,-500.0,0.00038082,11]
[424122453,1780601507000,-500.0,0.00038082,11]
[424122469,1780601507000,-500.0,0.00038082,11]
[424122447,1780601507000,-500.0,0.00038082,11]
[424122491,1780601507000,-500.0,0.00038082,11]
[424122480,1780601507000,-500.0,0.00038082,11]
[424122490,1780601507000,-500.0,0.00038082,11]
[424122482,1780601507000,-3132.24,0.00038082,11]
[424122484,1780601507000,-500.0,0.00038082,11]
[424122481,1780601507000,-500.0,0.00038082,11]
[424122483,1780601507000,-4507.46,0.00038082,11]
[424122485,1780601507000,-500.0,0.00038082,11]
[424122479,1780601507000,-2951.02,0.00038082,11]
[424122487,1780601507000,-500.0,0.00038082,11]
[424122489,1780601507000,-500.0,0.00038082,11]
[424122488,1780601507000,-500.0,0.00038082,11]
[424122476,1780601507000,-599.14,0.00038082,11]
[424122492,1780601507000,-500.0,0.00038082,3]
[424122496,1780601507000,-500.0,0.00038082,11]
[424122495,1780601507000,-500.0,0.00038082,11]
[424122494,1780601507000,-500.0,0.00038082,11]
[424122497,1780601507000,-500.0,0.00038082,11]
[424122501,1780601507000,-500.0,0.00038082,11]
[424122498,1780601507000,-500.0,0.00038082,11]
[424122499,1780601507000,-500.0,0.00038082,11]
[424122500,1780601507000,-500.0,0.00038082,11]
[424122502,1780601507000,-500.0,0.00038082,11]
[424122503,1780601507000,-1237.98,0.00038082,11]
[424122505,1780601507000,-4427.54,0.00038082,11]
[424122443,1780601507000,-500.0,0.00038082,11]
[424122493,1780601507000,-534.99,0.00038082,11]
[424122477,1780601507000,-560.56,0.00038082,11]
[424122486,1780601507000,-603.9,0.00038082,11]
[424122470,1780601507000,-4960.3,0.00038082,11]
[424122452,1780601507000,-2986.57,0.00038082,11]
[424122448,1780601507000,-500.0,0.00038082,11]
[424122474,1780601507000,-3315.98,0.00038082,11]
[424122449,1780601507000,-500.0,0.00038082,11]
[424122450,1780601507000,-574.36,0.00038082,11]
[424122454,1780601507000,-500.0,0.00038082,11]
[424122455,1780601507000,-500.0,0.00038082,11]
[424122456,1780601507000,-500.0,0.00038082,11]
[424122466,1780601507000,-500.0,0.00038082,11]
[424122465,1780601507000,-2635.06,0.00038082,11]
[424122458,1780601507000,-500.0,0.00038082,11]
[424122459,1780601507000,-500.0,0.00038082,11]
[424122457,1780601507000,-500.0,0.00038082,11]
[424122451,1780601507000,-2751.28,0.00038082,11]
[424122464,1780601507000,-500.0,0.00038082,11]
[424122462,1780601507000,-500.0,0.00038082,11]
[424122504,1780601507000,-500.0,0.00038082,11]
[424122478,1780601507000,-500.0,0.00038082,11]
[424122472,1780601507000,-500.0,0.00038082,11]
[424122475,1780601507000,-3050.34,0.00038082,11]
[424122468,1780601507000,-500.0,0.00038082,11]
[424122473,1780601507000,-500.0,0.00038082,11]
[424122467,1780601507000,-1000.0,0.00038082,11]
[424122460,1780601507000,-500.0,0.00038082,11]
[424122463,1780601507000,-528.61,0.00038082,11]
[424122461,1780601507000,-150.3,0.00038082,11]
[424122471,1780601507000,-500.0,0.00038082,11]
[424122526,1780601508000,-500.0,0.00038082,11]
[424122519,1780601508000,-500.0,0.00038082,11]
[424122525,1780601508000,-500.0,0.00038082,11]
[424122533,1780601508000,-4258.42,0.00038082,11]
[424122524,1780601508000,-3965.92,0.00038082,11]
[424122523,1780601508000,-500.0,0.00038082,11]
[424122518,1780601508000,-2062.53,0.00038082,11]
[424122520,1780601508000,-344.68807004,0.00038082,11]
[424122517,1780601508000,-500.0,0.00038082,11]
[424122521,1780601508000,-500.0,0.00038082,11]
[424122511,1780601508000,-500.0,0.00038082,11]
[424122513,1780601508000,-3079.67,0.00038082,11]
[424122522,1780601508000,-500.0,0.00038082,11]
[424122515,1780601508000,-516.59,0.00038082,11]
[424122514,1780601508000,-500.0,0.00038082,11]
[424122512,1780601508000,-500.0,0.00038082,11]
[424122510,1780601508000,-3559.06,0.00038082,11]
[424122506,1780601508000,-500.0,0.00038082,11]
[424122508,1780601508000,-500.0,0.00038082,11]
[424122507,1780601508000,-2895.13,0.00038082,11]
[424122509,1780601508000,-748.6,0.00038082,11]
[424122534,1780601508000,-783.25,0.00038082,7]
[424122516,1780601508000,-500.0,0.00038082,11]
[424122527,1780601508000,-500.0,0.00038082,11]
[424122539,1780601508000,-500.0,0.00038082,11]
[424122535,1780601508000,-500.0,0.00038082,11]
[424122555,1780601508000,406.53847781,0.000149,2]
[424122554,1780601508000,-478.20000001,0.00033798,2]
[424122553,1780601508000,-401.65716503,0.00038082,11]
[424122552,1780601508000,-1874.73602318,0.00038082,11]
[424122551,1780601508000,-569.6,0.00038082,11]
[424122550,1780601508000,-781.98,0.00038082,11]
[424122549,1780601508000,-500.0,0.00038082,11]
[424122548,1780601508000,-4066.44,0.00038082,11]
[424122542,1780601508000,-417.97,0.00038082,11]
[424122543,1780601508000,-2893.01,0.00038082,11]
[424122546,1780601508000,-1904.63465815,0.00038082,11]
[424122547,1780601508000,-2312.94534185,0.00038082,11]
[424122544,1780601508000,-625.17,0.00038082,11]
[424122531,1780601508000,-500.0,0.00038082,11]
[424122545,1780601508000,-500.0,0.00038082,11]
[424122529,1780601508000,-500.0,0.00038082,11]
[424122532,1780601508000,-201.70553249,0.00038082,11]
[424122537,1780601508000,-500.0,0.00038082,11]
[424122530,1780601508000,-671.79,0.00038082,11]
[424122540,1780601508000,-1153.67504484,0.00038082,11]
[424122541,1780601508000,-1864.40495516,0.00038082,11]
[424122538,1780601508000,-605.1,0.00038082,11]
[424122536,1780601508000,-500.0,0.00038082,11]
[424122528,1780601508000,-500.0,0.00038082,11]
[424122556,1780601511000,1739.0,0.0003013,120]
[424122557,1780601512000,621.0,0.0003013,120]
[424122558,1780601513000,3080.0,0.0003013,120]
[424122559,1780601546000,-250.0,0.0001481,2]
[424122560,1780601549000,-250.0,0.0001481,2]
[424122561,1780601570000,-76.13,0.0001481,2]
[424122562,1780601603000,699.713,0.00013577,2]
[424122563,1780601624000,-177.3544247,0.0001481,2]
[424122564,1780601677000,-223.66450733,0.00014199,2]
[424122566,1780601731000,-150.0,0.00014366,2]
[424122567,1780601744000,152.0,0.00029708,120]
[424122568,1780601959000,250.0,0.00014,2]
[424122571,1780602157000,304.83716416,0.00014909,7]
[424122572,1780602256000,-182.75830672,0.00014145,2]
[424122573,1780602310000,-300.0,0.00014187,2]
[424122575,1780602337000,249.42286718,0.00014471,7]
[424122576,1780602363000,-150.11355772,0.00014187,2]
[424122577,1780602416000,-250.0,0.00014228,2]
[424122578,1780602417000,771.9085089,0.00013692,2]
[424122579,1780602417000,236.20656704,0.00013692,2]
[424122581,1780602470000,-363.30424634,0.00014199,2]
[424122582,1780602486000,-363.30424634,0.00014199,2]
[424122583,1780602501000,-308.65898511,0.00014199,2]
[424122584,1780602516000,-153.25469173,0.00014199,2]
[424122586,1780602568000,-250.0,0.00014288,2]
[424122587,1780602622000,-169.17040471,0.00014275,2]
[424122601,1780602632000,-358.59236061,0.00014809,2]
[424122591,1780602632000,-250.0,0.00014368,2]
[424122593,1780602632000,-500.0,0.00014373,2]
[424122599,1780602632000,-1200.0,0.00014374,2]
[424122600,1780602632000,-166.66,0.00014608,2]
[424122594,1780602632000,-500.0,0.00014373,2]
[424122595,1780602632000,-467.8025301,0.00014373,2]
[424122604,1780602632000,-500.0,0.0001481,2]
[424122597,1780602632000,-481.38411903,0.00014373,2]
[424122596,1780602632000,-32.1974699,0.00014373,2]
[424122602,1780602632000,-500.0,0.0001481,2]
[424122605,1780602632000,-500.0,0.0001481,2]
[424122592,1780602632000,-500.0,0.00014373,2]
[424122603,1780602632000,-500.0,0.0001481,2]
[424122598,1780602632000,-183.0,0.00014374,2]
[424122607,1780602632000,-500.0,0.0001481,2]
[424122606,1780602632000,-500.0,0.0001481,2]
[424122615,1780602632000,-516.35938303,0.00014892,2]
[424122616,1780602632000,-500.0,0.00014892,2]
[424122620,1780602632000,-410.98645662,0.00014959,2]
[424122618,1780602632000,-166.66,0.00014916,2]
[424122619,1780602632000,-215.73365239,0.00014948,2]
[424122617,1780602632000,-500.0,0.00014892,2]
[424122611,1780602632000,-500.0,0.00014892,2]
[424122613,1780602632000,-502.4565391,0.00014892,2]
[424122609,1780602632000,-500.0,0.0001481,2]
[424122610,1780602632000,-150.0,0.00014891,2]
[424122612,1780602632000,-507.74537308,0.00014892,2]
[424122608,1780602632000,-500.0,0.0001481,2]
[424122614,1780602632000,-500.0,0.00014892,2]
[424122630,1780602633000,-500.0,0.00014999,2]
[424122633,1780602633000,-500.0,0.00014999,2]
[424122637,1780602633000,-452.37892802,0.00014999,2]
[424122638,1780602633000,-47.62107198,0.00014999,2]
[424122639,1780602633000,-500.0,0.00014999,2]
[424122643,1780602633000,-269.82084344,0.00014999,2]
[424122642,1780602633000,-293.20298521,0.00014999,2]
[424122644,1780602633000,-230.17915656,0.00014999,2]
[424122641,1780602633000,-206.79701479,0.00014999,2]
[424122635,1780602633000,-315.64788463,0.00014999,2]
[424122640,1780602633000,-500.0,0.00014999,2]
[424122628,1780602633000,-500.0,0.00014999,2]
[424122625,1780602633000,-500.0,0.00014999,2]
[424122631,1780602633000,-500.0,0.00014999,2]
[424122629,1780602633000,-557.43442372,0.00014999,2]
[424122632,1780602633000,-500.0,0.00014999,2]
[424122634,1780602633000,-500.0,0.00014999,2]
[424122636,1780602633000,-500.0,0.00014999,2]
[424122646,1780602633000,-500.0,0.00014999,2]
[424122626,1780602633000,-500.0,0.00014999,2]
[424122624,1780602633000,-150.0,0.00014999,2]
[424122623,1780602633000,-150.0,0.00014999,2]
[424122621,1780602633000,-5856.52484338,0.00014959,2]
[424122622,1780602633000,-500.0,0.00014999,2]
[424122627,1780602633000,-500.0,0.00014999,2]
[424122656,1780602633000,-374.13430077,0.00015322,7]
[424122689,1780602633000,-150.76046924,0.00015522,2]
[424122645,1780602633000,-500.0,0.00014999,2]
[424122698,1780602633000,-600.0,0.00015703,2]
[424122699,1780602633000,-500.0,0.00015703,2]
[424122700,1780602633000,-250.0,0.00015703,2]
[424122701,1780602633000,-1167.07307251,0.00015714,2]
[424122696,1780602633000,-160.43392296,0.00015645,7]
[424122692,1780602633000,-166.66,0.00015531,2]
[424122649,1780602633000,-500.0,0.00014999,2]
[424122694,1780602633000,-250.0,0.00015619,2]
[424122691,1780602633000,-4189.64,0.00015525,2]
[424122693,1780602633000,-190.31,0.00015572,2]
[424122695,1780602633000,-150.0,0.00015645,7]
[424122662,1780602633000,-732.37982675,0.00015522,2]
[424122697,1780602633000,-200.0,0.00015689,2]
[424122659,1780602633000,-1000.0,0.00015418,2]
[424122660,1780602633000,-500.0,0.00015503,2]
[424122650,1780602633000,-500.0,0.00014999,2]
[424122648,1780602633000,-500.0,0.00014999,2]
[424122651,1780602633000,-500.0,0.00014999,2]
[424122655,1780602633000,-500.0,0.00015273,2]
[424122647,1780602633000,-500.0,0.00014999,2]
[424122654,1780602633000,-166.66,0.00015223,2]
[424122658,1780602633000,-593.93,0.00015403,2]
[424122657,1780602633000,-4593.83,0.00015347,2]
[424122661,1780602633000,-1937.49970401,0.00015522,2]
[424122653,1780602633000,-529.98045814,0.00014999,2]
[424122652,1780602633000,-500.0,0.00014999,2]
[424122737,1780602638000,-418.87,0.0001703,2]
[424122720,1780602638000,-166.66,0.00016146,2]
[424122726,1780602638000,-2773.29,0.000165,2]
[424122727,1780602638000,-473.35326713,0.00016624,2]
[424122722,1780602638000,-150.0,0.00016181,2]
[424122725,1780602638000,-230.49,0.00016438,2]
[424122715,1780602638000,-169.1704047,0.00016081,2]
[424122724,1780602638000,-994.72,0.00016438,2]
[424122721,1780602638000,-2460.32,0.00016153,2]
[424122723,1780602638000,-196.54,0.00016294,2]
[424122714,1780602638000,-255.0,0.00016023,2]
[424122717,1780602638000,-2773.29,0.00016107,2]
[424122718,1780602638000,-200.0,0.00016118,2]
[424122719,1780602638000,-418.87,0.00016133,2]
[424122712,1780602638000,-166.66,0.00015838,2]
[424122710,1780602638000,-1342.35,0.00015739,2]
[424122711,1780602638000,-1680.0,0.00015812,2]
[424122713,1780602638000,-300.0,0.00016,2]
[424122709,1780602638000,-1606.21692749,0.00015714,2]
[424122736,1780602638000,-964.88,0.00016931,2]
[424122716,1780602638000,-323.46631049,0.00016104,2]
[424122730,1780602638000,-500.0,0.00016904,2]
[424122741,1780602638000,-1129.53756525,0.00017285,2]
[424122731,1780602638000,-500.0,0.00016904,2]
[424122751,1780602638000,-1412.67322495,0.00017458,2]
[424122752,1780602638000,-4177.6991,0.00017458,2]
[424122748,1780602638000,-1189.80478237,0.00017458,2]
[424122753,1780602638000,-7070.21940707,0.00017458,2]
[424122750,1780602638000,-435.25499378,0.00017458,2]
[424122749,1780602638000,-3778.4631989,0.00017458,2]
[424122747,1780602638000,-400.31348199,0.00017424,2]
[424122743,1780602638000,-602.5229385,0.00017393,2]
[424122745,1780602638000,-556.71523742,0.00017393,2]
[424122733,1780602638000,-500.0,0.00016904,2]
[424122739,1780602638000,-433.0,0.00017244,2]
[424122742,1780602638000,-592.4500985,0.00017285,2]
[424122746,1780602638000,-534.73651801,0.00017424,2]
[424122740,1780602638000,-1051.30233625,0.00017285,2]
[424122738,1780602638000,-160.0,0.00017178,2]
[424122735,1780602638000,-500.0,0.00016904,2]
[424122734,1780602638000,-500.0,0.00016904,2]
[424122728,1780602638000,-168.17,0.00016712,2]
[424122729,1780602638000,-2773.29,0.00016892,2]
[424122732,1780602638000,-500.0,0.00016904,2]
[424122744,1780602638000,-1191.76182408,0.00017393,2]
[424122754,1780602639000,-594.65428589,0.00017458,2]
[424122762,1780602640000,-7287.28324054,0.00017458,2]
[424122761,1780602640000,-1296.40462969,0.00017458,2]
[424122763,1780602640000,-3937.49607237,0.00017458,2]
[424122764,1780602640000,-276.02483664,0.00017458,2]
[424122765,1780602641000,-3350.0,0.00017458,2]
[424122766,1780602641000,-7200.48412773,0.00017458,2]
[424122776,1780602643000,-7851.55269603,0.00017458,2]
[424122775,1780602643000,-14218.91700173,0.00017458,2]
[424122774,1780602643000,-765.98205054,0.00017458,2]
[424122773,1780602643000,-342.92352,0.00017458,2]
[424122777,1780602644000,-829.94700734,0.00017458,2]
[424122818,1780602646000,-367.10517933,0.00017458,2]
[424122819,1780602646000,-6973.1208949,0.00017458,2]
[424122853,1780603139000,-275.70934656,0.00015521,2]
[424122854,1780603192000,-300.0,0.00015522,2]
[424122856,1780603246000,-500.0,0.00015522,2]
[424122857,1780603299000,-500.0,0.00015522,2]
[424122858,1780603314000,-380.41144562,0.00015522,2]
[424122859,1780603366000,-371.35857559,0.00015412,2]
[424122861,1780603419000,-282.22949612,0.00015412,2]
[424122862,1780603473000,-166.66,0.00014946,2]
[424122863,1780603526000,-166.66,0.0001526,2]
[424122864,1780603580000,-356.30781555,0.00015391,2]
[424122886,1780603831000,-300.0,0.000154,2]
[424122882,1780603831000,-34487.47,0.00015364,2]
[424122880,1780603831000,-300.0,0.00015363,2]
[424122883,1780603831000,-150.0,0.00015391,7]
[424122878,1780603831000,-159.65697863,0.00015363,2]
[424122879,1780603831000,-300.0,0.00015363,2]
[424122877,1780603831000,-500.0,0.00015363,2]
[424122876,1780603831000,-596.63296308,0.00015363,2]
[424122873,1780603831000,-1899.21,0.0001527,2]
[424122870,1780603831000,-306.03532984,0.00014564,2]
[424122874,1780603831000,-1424.95037616,0.00015324,2]
[424122872,1780603831000,-309.93582758,0.00014808,2]
[424122871,1780603831000,-264.43000658,0.00014662,2]
[424122869,1780603831000,-250.0,0.00014,2]
[424122875,1780603831000,-205.51962384,0.00015324,2]
[424122892,1780603831000,-238.42480492,0.00015521,7]
[424122888,1780603831000,-150.0,0.00015436,2]
[424122881,1780603831000,-1200.0,0.00015363,2]
[424122902,1780603831000,-150.0,0.00015608,2]
[424122904,1780603831000,-150.0,0.00015608,2]
[424122900,1780603831000,-2296.91,0.00015594,2]
[424122885,1780603831000,-193.0,0.000154,2]
[424122896,1780603831000,-771.7923836,0.00015522,2]
[424122912,1780603831000,-150.0,0.00015608,2]
[424122910,1780603831000,-150.0,0.00015608,2]
[424122898,1780603831000,-166.66,0.00015575,2]
[424122906,1780603831000,-150.0,0.00015608,2]
[424122908,1780603831000,-150.0,0.00015608,2]
[424122887,1780603831000,-250.0,0.000154,2]
[424122891,1780603831000,-3763.87,0.00015506,2]
[424122890,1780603831000,-150.0,0.00015486,2]
[424122889,1780603831000,-200.0,0.00015462,2]
[424122894,1780603831000,-762.4238043,0.00015522,2]
[424122930,1780603832000,-300.0,0.00016,2]
[424122937,1780603832000,-550.0,0.00016137,2]
[424122936,1780603832000,-294.61963131,0.00016137,2]
[424122934,1780603832000,-150.0,0.00016081,2]
[424122933,1780603832000,-150.0,0.00016081,2]
[424122935,1780603832000,-1000.0,0.00016106,2]
[424122926,1780603832000,-238.42480492,0.00015831,7]
[424122924,1780603832000,-150.0,0.00015766,2]
[424122928,1780603832000,-150.0,0.00015924,2]
[424122942,1780603832000,-2000.0,0.00016212,2]
[424122925,1780603832000,-150.0,0.00015766,2]
[424122927,1780603832000,-166.66,0.0001589,2]
[424122932,1780603832000,-150.0,0.00016042,2]
[424122923,1780603832000,-150.0,0.00015698,7]
[424122920,1780603832000,-215.73365239,0.00015663,2]
[424122922,1780603832000,-356.51252461,0.00015689,2]
[424122931,1780603832000,-227.62,0.00016022,2]
[424122918,1780603832000,-160.0,0.00015654,2]
[424122916,1780603832000,-152.70249457,0.00015615,2]
[424122914,1780603832000,-150.0,0.00015608,2]
[424122929,1780603832000,-150.0,0.00015924,2]
[424122941,1780603832000,-166.66,0.00016204,2]
[424122939,1780603832000,-374.03332942,0.00016173,2]
[424122938,1780603832000,-150.0,0.0001616,7]
[424122940,1780603832000,-388.71922378,0.00016173,2]
[424122964,1780603832000,-2265.27402181,0.000166,6]
[424122963,1780603832000,-1362.21011539,0.000166,6]
[424122962,1780603832000,-400.0,0.000166,6]
[424122961,1780603832000,-150.0,0.00016554,2]
[424122960,1780603832000,-150.0,0.00016554,2]
[424122956,1780603832000,-2870.14132992,0.00016491,2]
[424122955,1780603832000,-26239.37867008,0.00016491,2]
[424122954,1780603832000,-592.42969906,0.0001649,2]
[424122958,1780603832000,-3600.0,0.000165,6]
[424122952,1780603832000,-150.0,0.00016475,2]
[424122957,1780603832000,-200.0,0.000165,6]
[424122951,1780603832000,-150.0,0.00016475,2]
[424122953,1780603832000,-617.42554703,0.0001649,2]
[424122943,1780603832000,-150.0,0.00016239,2]
[424122946,1780603832000,-500.0,0.00016336,2]
[424122947,1780603832000,-150.0,0.00016397,2]
[424122944,1780603832000,-150.0,0.00016239,2]
[424122945,1780603832000,-238.42480492,0.00016297,7]
[424122949,1780603832000,-150.0,0.00016475,2]
[424122959,1780603832000,-166.66,0.00016519,2]
[424122950,1780603832000,-150.0,0.00016475,2]
[424122948,1780603832000,-150.0,0.00016397,2]
[424122980,1780603837000,-193.0,0.00016786,2]
[424122968,1780603837000,-3572.5158628,0.000166,6]
[424122970,1780603837000,-600.0,0.000167,6]
[424122969,1780603837000,-150.0,0.00016622,7]
[424122972,1780603837000,-302.00000012,0.000167,6]
[424122971,1780603837000,-5606.33272609,0.000167,6]
[424122967,1780603837000,-160.0,0.00015663,2]
[424122973,1780603837000,-385.46144699,0.000167,6]
[424122975,1780603837000,-150.0,0.00016712,2]
[424122974,1780603837000,-4606.2058268,0.000167,6]